Workbook

Sheet Daily Briefing
I2: Calculated Dispatch PL (Today) | J2: > than 50% committed resources? | K2: Actual PL
I3: =ROUND(AVERAGE(I8,I19,I30,I41,I52),0) -> 2 | J3: No | K3: =IF(J3="Yes", MIN(I3+1, 5), I3) -> 2
C6: Casper Interagency Dispatch Current Fire Danger | M6: FDOP Reference Data
C7: WEST FDRA | D7: ERC | E7: BI | F7: IC | G7: ADJ RATING (DAILY) | H7: ADJ RATING (POSTED) | I7: PREPAREDNESS | J7: RESPONSE | K7: STAFFING | N7: WEST RESPONSE LEVEL | U7: WEST FIRE DANGER RATING | AB7: PL / SL (ERCs)
B8: Today | C8: =TODAY() -> 2025-09-23 | D8: =AVERAGE(West!E27:E31) -> 22.874 | E8: =AVERAGE(West!G27:G31) -> 16.088 | F8: =AVERAGE(West!D27:D31) -> 3.834 | G8: =INDEX($V$11:$Z$15,MATCH($K$8,$U$11:$U$15),MATCH($F$8,$V$10:$Z$10)) -> 1 | H8: =ROUND(AVERAGE(G8:G13),0) -> 2 | I8: =VLOOKUP(D8,$AB$10:$AC$14,2) -> 2 | J8: =INDEX($O$10:$S$12,MATCH($E$8,$N$10:$N$12),MATCH($D$8,$O$9:$S$9)) -> 1 | K8: =VLOOKUP($D$8,$AB$10:$AC$14,2) -> 2 | O8: ERC | U8: ADJECTIVE FIRE DANGER RATING | AB8: WEST
B9: Forecasted | C9: =TODAY()+1 -> 2025-09-24 | D9: =AVERAGE(West!E22:E26) -> 26.35 | E9: =AVERAGE(West!G22:G26) -> 16.688 | F9: =AVERAGE(West!D22:D26) -> 14.014 | G9: =INDEX($V$11:$Z$15,MATCH($K9,$U$11:$U$15),MATCH($F9,$V$10:$Z$10)) -> 2 | I9: =VLOOKUP($D$9,$AB$10:$AC$14,2) -> 2 | J9: =INDEX($O$10:$S$12,MATCH($E$9,$N$10:$N$12),MATCH($D$9,$O$9:$S$9)) -> 1 | K9: =VLOOKUP($D$9,$AB$10:$AC$14,2) -> 2 | N9: BI | O9: 0 | P9: 13 | Q9: 33 | R9: 45 | S9: 53 | V9: IGNITION COMPONENT | AB9: FM X
C10: =TODAY()+2 -> 2025-09-25 | D10: =AVERAGE(West!E17:E21) -> 29.48 | E10: =AVERAGE(West!G17:G21) -> 22.468 | F10: =AVERAGE(West!D17:D21) -> 27.078 | G10: =INDEX(V11:Z15,MATCH($K$10,$U$11:$U$15),MATCH($F$10,$V$10:$Z$10)) -> 2 | I10: =VLOOKUP($D$10,$AB$10:$AC$14,2) -> 2 | J10: =INDEX(O10:$S$12,MATCH($E$10,$N$10:$N$12),MATCH($D$10,$O$9:$S$9)) -> 1 | K10: =VLOOKUP($D$10,$AB$10:$AC$14,2) -> 2 | N10: 0 | O10: 1 | P10: 1 | Q10: 1 | R10: 2 | S10: 2 | U10: STAFFING LEVEL (ERC) | V10: 0 | W10: 9 | X10: 26 | Y10: 42 | Z10: 57 | AB10: 0 | AC10: 1
C11: =TODAY()+3 -> 2025-09-26 | D11: =AVERAGE(West!E12:E16) -> 31.822 | E11: =AVERAGE(West!G12:G16) -> 24.66 | F11: =AVERAGE(West!D12:D16) -> 29.146 | G11: =INDEX($V$11:$Z$15,MATCH($K$11,$U$11:$U$15),MATCH($F$11,$V$10:$Z$10)) -> 2 | I11: =VLOOKUP(D$11,$AB$10:$AC$14,2) -> 2 | J11: =INDEX($O$10:S$12,MATCH($E$11,$N$10:$N$12),MATCH($D$11,$O$9:$S$9)) -> 1 | K11: =VLOOKUP($D11,$AB$10:$AC$14,2) -> 2 | N11: 19 | O11: 1 | P11: 1 | Q11: 2 | R11: 2 | S11: 3 | U11: 1 | V11: 1 | W11: 1 | X11: 1 | Y11: 2 | Z11: 2 | AB11: 13 | AC11: 2
C12: =TODAY()+4 -> 2025-09-27 | D12: =AVERAGE(West!E7:E11) -> 33.282 | E12: =AVERAGE(West!G7:G11) -> 24.028 | F12: =AVERAGE(West!D7:D11) -> 26.18 | G12: =INDEX($V$11:$Z$15,MATCH($K$12,$U$11:$U$15),MATCH($F$12,$V$10:$Z$10)) -> 3 | I12: =VLOOKUP($D12,$AB$10:$AC$14,2) -> 3 | J12: =INDEX($O$10:$S$12,MATCH($E$12,$N$10:$N$12),MATCH($D$12,$O$9:$S$9)) -> 2 | K12: =VLOOKUP($D12,$AB$10:$AC$14,2) -> 3 | N12: 33 | O12: 1 | P12: 2 | Q12: 3 | R12: 3 | S12: 3 | U12: 2 | V12: 1 | W12: 2 | X12: 2 | Y12: 2 | Z12: 3 | AB12: 33 | AC12: 3
C13: =TODAY()+5 -> 2025-09-28 | D13: =AVERAGE(West!E2:E6) -> 33.82 | E13: =AVERAGE(West!G2:G6) -> 24.958 | F13: =AVERAGE(West!D2:D6) -> 20.528 | G13: =INDEX($V$11:$Z$15,MATCH($K$13,$U$11:$U$15),MATCH($F$13,$V$10:$Z$10)) -> 2 | I13: =VLOOKUP($D13,$AB$10:$AC$14,2) -> 3 | J13: =INDEX($O$10:$S$12,MATCH($E$13,$N$10:$N$12),MATCH($D$13,$O$9:$S$9)) -> 2 | K13: =VLOOKUP($D13,$AB$10:$AC$14,2) -> 3 | U13: 3 | V13: 2 | W13: 2 | X13: 3 | Y13: 3 | Z13: 4 | AB13: 45 | AC13: 4
C14: =TODAY()+6 -> 2025-09-29 | U14: 4 | V14: 2 | W14: 3 | X14: 4 | Y14: 4 | Z14: 5 | AB14: 53 | AC14: 5
U15: 5 | V15: 3 | W15: 4 | X15: 4 | Y15: 5 | Z15: 5
C18: EAST FDRA | D18: ERC | E18: BI | F18: IC | G18: ADJ RATING (DAILY) | H18: ADJ RATING (POSTED) | I18: PREPAREDNESS | J18: RESPONSE | K18: STAFFING | N18: EAST RESPONSE LEVEL | U18: EAST FIRE DANGER RATING | AB18: PL / SL (ERCs)
B19: Today | C19: =TODAY() -> 2025-09-23 | D19: =AVERAGE(East!E22:E25) -> 27.32 | E19: =AVERAGE(East!G22:G25) -> 17.5675 | F19: =AVERAGE(East!D22:D25) -> 8.5275 | G19: =INDEX($V$22:$Z$26,MATCH($K19,$U$22:$U$26),MATCH($F19,$V$21:$Z$21)) -> 1 | H19: =ROUND(AVERAGE(G19:G24),0) -> 3 | I19: =VLOOKUP($D19,$AB$21:$AC$25,2) -> 2 | J19: =INDEX($O$21:$S$23,MATCH($E$19,$N$21:$N$23),MATCH($D$19,$O$20:$S$20)) -> 1 | K19: =VLOOKUP($D19,$AB$21:$AC$25,2) -> 2 | O19: ERC | U19: ADJECTIVE FIRE DANGER RATING | AB19: EAST
B20: Forecasted | C20: =TODAY()+1 -> 2025-09-24 | D20: =AVERAGE(East!E18:E21) -> 31.3675 | E20: =AVERAGE(East!G18:G21) -> 23.0125 | F20: =AVERAGE(East!D18:D21) -> 22.86 | G20: =INDEX($V$22:$Z$26,MATCH($K20,$U$22:$U$26),MATCH($F20,$V$21:$Z$21)) -> 3 | I20: 3 | J20: =INDEX($O$21:$S$23,MATCH($E$20,$N$21:$N$23),MATCH($D$20,$O$20:$S$20)) -> 2 | K20: 3 | N20: BI | O20: 0 | P20: 12 | Q20: 28 | R20: 39 | S20: 47 | V20: IGNITION COMPONENT | AB20: FM Y
C21: =TODAY()+2 -> 2025-09-25 | D21: =AVERAGE(East!E14:E17) -> 34.5275 | E21: =AVERAGE(East!G14:G17) -> 23.1475 | F21: =AVERAGE(East!D14:D17) -> 28.8475 | G21: 3 | I21: 3 | J21: =INDEX($O$21:$S$23,MATCH($E$21,$N$21:$N$23),MATCH($D$21,$O$20:$S$20)) -> 2 | K21: 3 | N21: 0 | O21: 1 | P21: 1 | Q21: 1 | R21: 2 | S21: 2 | U21: STAFFING LEVEL (ERC) | V21: 0 | W21: 9 | X21: 20 | Y21: 35 | Z21: 47 | AB21: 0 | AC21: 1
C22: =TODAY()+3 -> 2025-09-26 | D22: =AVERAGE(East!E10:E13) -> 36.71 | E22: =AVERAGE(East!G10:G13) -> 24.8375 | F22: =AVERAGE(East!D10:D13) -> 28.605 | G22: 3 | I22: 3 | J22: =INDEX($O$21:$S$23,MATCH($E22,$N$21:$N$23),MATCH($D22,$O$20:$S$20)) -> 2 | K22: 3 | N22: 21 | O22: 1 | P22: 1 | Q22: 2 | R22: 2 | S22: 3 | U22: 1 | V22: 1 | W22: 1 | X22: 1 | Y22: 2 | Z22: 2 | AB22: 12 | AC22: 2
C23: =TODAY()+4 -> 2025-09-27 | D23: =AVERAGE(East!E6:E9) -> 38.39 | E23: =AVERAGE(East!G6:G9) -> 26.91 | F23: =AVERAGE(East!D6:D9) -> 30.165 | G23: 3 | I23: 3 | J23: =INDEX($O$21:$S$23,MATCH($E23,$N$21:$N$23),MATCH($D23,$O$20:$S$20)) -> 2 | K23: 3 | N23: 29 | O23: 1 | P23: 2 | Q23: 3 | R23: 3 | S23: 3 | U23: 2 | V23: 1 | W23: 2 | X23: 2 | Y23: 2 | Z23: 3 | AB23: 28 | AC23: 3
C24: =TODAY()+5 -> 2025-09-28 | D24: =AVERAGE(East!E2:E5) -> 39.3775 | E24: =AVERAGE(East!G2:G5) -> 26.305 | F24: =AVERAGE(East!D2:D5) -> 25.1625 | G24: 4 | I24: 4 | J24: =INDEX($O$21:$S$23,MATCH($E24,$N$21:$N$23),MATCH($D24,$O$20:$S$20)) -> 2 | K24: 4 | U24: 3 | V24: 2 | W24: 2 | X24: 3 | Y24: 3 | Z24: 4 | AB24: 39 | AC24: 4
C25: =TODAY()+6 -> 2025-09-29 | U25: 4 | V25: 2 | W25: 3 | X25: 4 | Y25: 4 | Z25: 5 | AB25: 47 | AC25: 5
U26: 5 | V26: 3 | W26: 4 | X26: 4 | Y26: 5 | Z26: 5
C29: LAR FDRA | D29: ERC | E29: BI | F29: IC | G29: ADJ RATING (DAILY) | H29: ADJ RATING (POSTED) | I29: PREPAREDNESS | J29: RESPONSE | K29: STAFFING | N29: LARAMIE RANGE RESPONSE LEVEL | U29: LARAMIE RANGE FIRE DANGER RATING | AB29: PL / SL (ERCs)
B30: Today | C30: =TODAY() -> 2025-09-23 | D30: =AVERAGE(Laramie!E17:E19) -> 12.21666667 | E30: =AVERAGE(Laramie!G17:G19) -> 8.486666667 | F30: =AVERAGE(Laramie!D17:D19) -> 1.596666667 | G30: =INDEX($V$33:$Z$37,MATCH($K30,$U$33:$U$37),MATCH($F30,$V$32:$Z$32)) -> 1 | H30: =ROUND(AVERAGE(G30:G35),0) -> 2 | I30: =VLOOKUP($D30,$AB$32:$AC$36,2) -> 2 | J30: =INDEX($O$32:$S$34,MATCH($E30,$N$32:$N$34),MATCH($D30,$O$31:$S$31)) -> 1 | K30: =VLOOKUP($D30,$AB$32:$AC$36,2) -> 2 | O30: ERC | U30: ADJECTIVE FIRE DANGER RATING | AB30: LARAMIE RANGE
B31: Forecasted | C31: =TODAY()+1 -> 2025-09-24 | D31: =AVERAGE(Laramie!E14:E16) -> 15.77333333 | E31: =AVERAGE(Laramie!G14:G16) -> 11.59666667 | F31: =AVERAGE(Laramie!D14:D16) -> 11.33666667 | G31: 2 | I31: 2 | J31: 1 | K31: 2 | N31: BI | O31: 0 | P31: 12 | Q31: 28 | R31: 39 | S31: 47 | V31: IGNITION COMPONENT | AB31: FM Y
C32: =TODAY()+2 -> 2025-09-25 | D32: =AVERAGE(Laramie!E11:E13) -> 20.22 | E32: =AVERAGE(Laramie!G11:G13) -> 17.02 | F32: =AVERAGE(Laramie!D11:D13) -> 21.61 | G32: 2 | I32: 2 | J32: 1 | K32: 2 | N32: 0 | O32: 1 | P32: 1 | Q32: 1 | R32: 2 | S32: 2 | U32: STAFFING LEVEL (ERC) | V32: 0 | W32: 10 | X32: 24 | Y32: 43 | Z32: 53 | AB32: 0 | AC32: 1
C33: =TODAY()+3 -> 2025-09-26 | D33: =AVERAGE(Laramie!E8:E10) -> 23.38666667 | E33: =AVERAGE(Laramie!G8:G10) -> 19.08666667 | F33: =AVERAGE(Laramie!D8:D10) -> 21.72666667 | G33: 2 | I33: 2 | J33: 1 | K33: 2 | N33: 20 | O33: 1 | P33: 1 | Q33: 2 | R33: 2 | S33: 3 | U33: 1 | V33: 1 | W33: 1 | X33: 1 | Y33: 2 | Z33: 2 | AB33: 12 | AC33: 2
C34: =TODAY()+4 -> 2025-09-27 | D34: =AVERAGE(Laramie!E5:E7) -> 26.07333333 | E34: =AVERAGE(Laramie!G5:G7) -> 20.33333333 | F34: =AVERAGE(Laramie!D5:D7) -> 20.61333333 | G34: 2 | I34: 2 | J34: 1 | K34: 2 | N34: 30 | O34: 1 | P34: 2 | Q34: 3 | R34: 3 | S34: 3 | U34: 2 | V34: 1 | W34: 2 | X34: 2 | Y34: 2 | Z34: 3 | AB34: 28 | AC34: 3
C35: =TODAY()+5 -> 2025-09-28 | D35: =AVERAGE(Laramie!E2:E4) -> 27.73 | E35: =AVERAGE(Laramie!G2:G4) -> 21.26 | F35: =AVERAGE(Laramie!D2:D4) -> 17.59 | G35: 2 | I35: 2 | J35: 1 | K35: 2 | U35: 3 | V35: 2 | W35: 2 | X35: 3 | Y35: 3 | Z35: 4 | AB35: 39 | AC35: 4
C36: =TODAY()+6 -> 2025-09-29 | U36: 4 | V36: 2 | W36: 3 | X36: 4 | Y36: 4 | Z36: 5 | AB36: 47 | AC36: 5
U37: 5 | V37: 3 | W37: 4 | X37: 4 | Y37: 5 | Z37: 5
C40: SOUTHERN BIG FDRA | D40: ERC | E40: BI | F40: IC | G40: ADJ RATING (DAILY) | H40: ADJ RATING (POSTED) | I40: PREPAREDNESS | J40: RESPONSE | K40: STAFFING | N40: SOUTH BIG HORNS RESPONSE LEVEL | U40: SOUTH BIG HORNS FIRE DANGER RATING | AB40: PL / SL (ERCs)
B41: Today | C41: =TODAY() -> 2025-09-23 | D41: =AVERAGE('South Bighorns'!E12:E13) -> 24.66 | E41: =AVERAGE('South Bighorns'!G12:G13) -> 15.54 | F41: =AVERAGE('South Bighorns'!D12:D13) -> 4.61 | G41: =INDEX($V$44:$Z$48,MATCH($K41,$U$44:$U$48),MATCH($F41,$V$43:$Z$43)) -> 2 | H41: =ROUND(AVERAGE(G41:G46),0) -> 3 | I41: =VLOOKUP($D41,$AB$43:$AC$47,2) -> 3 | J41: =INDEX($O$43:$S$45,MATCH($E41,$N$43:$N$45),MATCH($D41,$O$42:$S$42)) -> 1 | K41: =VLOOKUP($D41,$AB$43:$AC$47,2) -> 3 | O41: ERC | U41: ADJECTIVE FIRE DANGER RATING | AB41: SOUTH BIG HORNS
B42: Forecasted | C42: =TODAY()+1 -> 2025-09-24 | D42: =AVERAGE('South Bighorns'!E10:E11) -> 28.97 | E42: =AVERAGE('South Bighorns'!G10:G11) -> 19.4 | F42: =AVERAGE('South Bighorns'!D10:D11) -> 13.925 | G42: 2 | I42: 3 | J42: 1 | K42: 3 | N42: BI | O42: 0 | P42: 8 | Q42: 23 | R42: 41 | S42: 49 | V42: IGNITION COMPONENT | AB42: FM Y
C43: =TODAY()+2 -> 2025-09-25 | D43: =AVERAGE('South Bighorns'!E8:E9) -> 32.15 | E43: =AVERAGE('South Bighorns'!G8:G9) -> 22.39 | F43: =AVERAGE('South Bighorns'!D8:D9) -> 23.44 | G43: 3 | I43: 3 | J43: 2 | K43: 3 | N43: 0 | O43: 1 | P43: 1 | Q43: 1 | R43: 2 | S43: 2 | U43: STAFFING LEVEL (ERC) | V43: 0 | W43: 8 | X43: 17 | Y43: 31 | Z43: 43 | AB43: 0 | AC43: 1
C44: =TODAY()+3 -> 2025-09-26 | D44: =AVERAGE('South Bighorns'!E6:E7) -> 33.705 | E44: =AVERAGE('South Bighorns'!G6:G7) -> 21.89 | F44: =AVERAGE('South Bighorns'!D6:D7) -> 21.855 | G44: 3 | I44: 3 | J44: 2 | K44: 3 | N44: 20 | O44: 1 | P44: 1 | Q44: 2 | R44: 2 | S44: 3 | U44: 1 | V44: 1 | W44: 1 | X44: 1 | Y44: 2 | Z44: 2 | AB44: 8 | AC44: 2
C45: =TODAY()+4 -> 2025-09-27 | D45: =AVERAGE('South Bighorns'!E4:E5) -> 35.415 | E45: =AVERAGE('South Bighorns'!G4:G5) -> 22.885 | F45: =AVERAGE('South Bighorns'!D4:D5) -> 22.675 | G45: 3 | I45: 3 | J45: 2 | K45: 3 | N45: 29 | O45: 1 | P45: 2 | Q45: 3 | R45: 3 | S45: 3 | U45: 2 | V45: 1 | W45: 2 | X45: 2 | Y45: 2 | Z45: 3 | AB45: 23 | AC45: 3
C46: =TODAY()+5 -> 2025-09-28 | D46: =AVERAGE('South Bighorns'!E2:E3) -> 36.365 | E46: =AVERAGE('South Bighorns'!G2:G3) -> 22.555 | F46: =AVERAGE('South Bighorns'!D2:D3) -> 18.25 | G46: 3 | I46: 3 | J46: 2 | K46: 3 | U46: 3 | V46: 2 | W46: 2 | X46: 3 | Y46: 3 | Z46: 4 | AB46: 41 | AC46: 4
C47: =TODAY()+6 -> 2025-09-29 | U47: 4 | V47: 2 | W47: 3 | X47: 4 | Y47: 4 | Z47: 5 | AB47: 49 | AC47: 5
U48: 5 | V48: 3 | W48: 4 | X48: 4 | Y48: 5 | Z48: 5
C51: MEDBOW FDRA | D51: ERC | E51: BI | F51: IC | G51: ADJ RATING (DAILY) | H51: ADJ RATING (POSTED) | I51: PREPAREDNESS | J51: RESPONSE | K51: STAFFING | N51: MEDICINE BOW RESPONSE LEVEL | U51: MEDICINE BOW FIRE DANGER RATING | AB51: PL / SL (ERCs)
B52: Today | C52: =TODAY() -> 2025-09-23 | D52: =AVERAGE('Med-Bow'!E22:E25) -> 10.54 | E52: =AVERAGE('Med-Bow'!G22:G25) -> 10.8325 | F52: =AVERAGE('Med-Bow'!D22:D25) -> 0.44 | G52: =INDEX($V$55:$Z$59,MATCH($K52,$U$55:$U$59),MATCH($F52,$V$54:$Z$54)) -> 1 | H52: =ROUND(AVERAGE(G52:G57),0) -> 1 | I52: =VLOOKUP($D52,$AB$54:$AC$58,2) -> 1 | J52: =INDEX($O$54:$S$56,MATCH(E52,$N$54:$N$56),MATCH($D52,$O$53:$S$53)) -> 1 | K52: =VLOOKUP($D52,$AB$54:$AC$58,2) -> 1 | O52: ERC | U52: ADJECTIVE FIRE DANGER RATING | AB52: MEDICINE BOW
B53: Forecasted | C53: =TODAY()+1 -> 2025-09-24 | D53: =AVERAGE('Med-Bow'!E18:E21) -> 25.5925 | E53: =AVERAGE('Med-Bow'!G18:G21) -> 16.9725 | F53: =AVERAGE('Med-Bow'!D18:D21) -> 4.8075 | G53: 1 | I53: 1 | J53: 1 | K53: 1 | N53: BI | O53: 0 | P53: 46 | Q53: 65 | R53: 88 | S53: 100 | V53: IGNITION COMPONENT | AB53: FM Z
C54: =TODAY()+2 -> 2025-09-25 | D54: =AVERAGE('Med-Bow'!E14:E17) -> 29.395 | E54: =AVERAGE('Med-Bow'!G14:G17) -> 21.305 | F54: =AVERAGE('Med-Bow'!D14:D17) -> 8.4225 | G54: 1 | I54: 1 | J54: 1 | K54: 1 | N54: 0 | O54: 1 | P54: 1 | Q54: 1 | R54: 2 | S54: 2 | U54: STAFFING LEVEL (ERC) | V54: 0 | W54: 8 | X54: 19 | Y54: 31 | Z54: 42 | AB54: 0 | AC54: 1
C55: =TODAY()+3 -> 2025-09-26 | D55: =AVERAGE('Med-Bow'!E10:E13) -> 31.4375 | E55: =AVERAGE('Med-Bow'!G10:G13) -> 23.475 | F55: =AVERAGE('Med-Bow'!D10:D13) -> 7.845 | G55: 1 | I55: 1 | J55: 1 | K55: 1 | N55: 45 | O55: 1 | P55: 1 | Q55: 2 | R55: 2 | S55: 3 | U55: 1 | V55: 1 | W55: 1 | X55: 1 | Y55: 2 | Z55: 2 | AB55: 46 | AC55: 2
C56: =TODAY()+4 -> 2025-09-27 | D56: =AVERAGE('Med-Bow'!E6:E9) -> 55.0275 | E56: =AVERAGE('Med-Bow'!G6:G9) -> 46.73 | F56: =AVERAGE('Med-Bow'!D6:D9) -> 14.275 | G56: 2 | I56: 2 | J56: 1 | K56: 2 | N56: 70 | O56: 1 | P56: 2 | Q56: 3 | R56: 3 | S56: 3 | U56: 2 | V56: 1 | W56: 2 | X56: 2 | Y56: 2 | Z56: 3 | AB56: 65 | AC56: 3
C57: =TODAY()+5 -> 2025-09-28 | D57: =AVERAGE('Med-Bow'!E2:E5) -> 54.1075 | E57: =AVERAGE('Med-Bow'!G2:G5) -> 45.235 | F57: =AVERAGE('Med-Bow'!D2:D5) -> 8.4625 | G57: 2 | I57: 2 | J57: 1 | K57: 2 | U57: 3 | V57: 2 | W57: 2 | X57: 3 | Y57: 3 | Z57: 4 | AB57: 88 | AC57: 4
C58: =TODAY()+6 -> 2025-09-29 | U58: 4 | V58: 2 | W58: 3 | X58: 4 | Y58: 4 | Z58: 5 | AB58: 100 | AC58: 5
U59: 5 | V59: 3 | W59: 4 | X59: 4 | Y59: 5 | Z59: 5

Sheet FDRA Map

Sheet West
A1: stationName | B1: observationTime | C1: observationTime - Copy | D1: ignitionComponent | E1: energyReleaseComponent | F1: spreadComponent | G1: burningIndex | H1: NFDRQAFlag
A2: DODGE CREEK | B2: 2025-09-28 | C2: 20 | D2: 18.74 | E2: 18.14 | F2: 3.56 | G2: 20.47 | H2: 0
A3: MUDDY CREEK | B3: 2025-09-28 | C3: 20 | D3: 23.49 | E3: 41.23 | F3: 2.83 | G3: 26.88 | H3: 0
A4: COW CREEK | B4: 2025-09-28 | C4: 20 | D4: 15.84 | E4: 31.56 | F4: 2.99 | G4: 24.39 | H4: 0
A5: SNOW SPRINGS CREEK | B5: 2025-09-28 | C5: 20 | D5: 20.28 | E5: 35.45 | F5: 2.94 | G5: 25.52 | H5: 0
A6: ANDERSON RIDGE | B6: 2025-09-28 | C6: 20 | D6: 24.29 | E6: 42.72 | F6: 2.88 | G6: 27.53 | H6: 0
A7: DODGE CREEK | B7: 2025-09-27 | C7: 20 | D7: 20.09 | E7: 15.49 | F7: 2.93 | G7: 17.4 | H7: 0
A8: COW CREEK | B8: 2025-09-27 | C8: 20 | D8: 23.36 | E8: 31.41 | F8: 3.04 | G8: 24.53 | H8: 0
A9: SNOW SPRINGS CREEK | B9: 2025-09-27 | C9: 20 | D9: 27.47 | E9: 35.62 | F9: 2.76 | G9: 24.85 | H9: 0
A10: ANDERSON RIDGE | B10: 2025-09-27 | C10: 20 | D10: 30.45 | E10: 42.55 | F10: 2.86 | G10: 27.42 | H10: 0
A11: MUDDY CREEK | B11: 2025-09-27 | C11: 20 | D11: 29.53 | E11: 41.34 | F11: 2.61 | G11: 25.94 | H11: 0
A12: DODGE CREEK | B12: 2025-09-26 | C12: 20 | D12: 23.62 | E12: 11.56 | F12: 3.51 | G12: 16.53 | H12: 0
A13: COW CREEK | B13: 2025-09-26 | C13: 20 | D13: 23.43 | E13: 30.48 | F13: 3.05 | G13: 24.21 | H13: 0
A14: SNOW SPRINGS CREEK | B14: 2025-09-26 | C14: 20 | D14: 31.28 | E14: 35.28 | F14: 3.1 | G14: 26.08 | H14: 0
A15: ANDERSON RIDGE | B15: 2025-09-26 | C15: 20 | D15: 32.56 | E15: 41.3 | F15: 3.15 | G15: 28.27 | H15: 0
A16: MUDDY CREEK | B16: 2025-09-26 | C16: 20 | D16: 34.84 | E16: 40.49 | F16: 3.2 | G16: 28.21 | H16: 0
A17: MUDDY CREEK | B17: 2025-09-25 | C17: 20 | D17: 33.8 | E17: 39.41 | F17: 2.74 | G17: 25.92 | H17: 0
A18: ANDERSON RIDGE | B18: 2025-09-25 | C18: 20 | D18: 30.72 | E18: 39.96 | F18: 3.09 | G18: 27.58 | H18: 0
A19: SNOW SPRINGS CREEK | B19: 2025-09-25 | C19: 20 | D19: 26.26 | E19: 32.84 | F19: 2.71 | G19: 23.75 | H19: 0
A20: DODGE CREEK | B20: 2025-09-25 | C20: 20 | D20: 23.66 | E20: 6.43 | F20: 3.5 | G20: 12.61 | H20: 0
A21: COW CREEK | B21: 2025-09-25 | C21: 20 | D21: 20.95 | E21: 28.76 | F21: 2.75 | G21: 22.48 | H21: 0
A22: DODGE CREEK | B22: 2025-09-24 | C22: 20 | D22: 10.47 | E22: 0 | F22: 2.59 | G22: 0 | H22: 0
A23: COW CREEK | B23: 2025-09-24 | C23: 20 | D23: 10.78 | E23: 26.22 | F23: 2.05 | G23: 18.82 | H23: 0
A24: SNOW SPRINGS CREEK | B24: 2025-09-24 | C24: 20 | D24: 14.48 | E24: 31.89 | F24: 1.99 | G24: 20.32 | H24: 0
A25: ANDERSON RIDGE | B25: 2025-09-24 | C25: 20 | D25: 15.55 | E25: 37.05 | F25: 2.39 | G25: 23.67 | H25: 0
A26: MUDDY CREEK | B26: 2025-09-24 | C26: 20 | D26: 18.79 | E26: 36.59 | F26: 1.79 | G26: 20.63 | H26: 0
A27: DODGE CREEK | B27: 2025-09-23 | C27: 20 | D27: 0.04 | E27: 0 | F27: 0.48 | G27: 0 | H27: 0
A28: COW CREEK | B28: 2025-09-23 | C28: 20 | D28: 2.79 | E28: 22.13 | F28: 2.12 | G28: 17.67 | H28: 0
A29: SNOW SPRINGS CREEK | B29: 2025-09-23 | C29: 20 | D29: 2.58 | E29: 26.36 | F29: 2.1 | G29: 19.08 | H29: 0
A30: ANDERSON RIDGE | B30: 2025-09-23 | C30: 20 | D30: 5.41 | E30: 32.99 | F30: 1.85 | G30: 19.97 | H30: 0
A31: MUDDY CREEK | B31: 2025-09-23 | C31: 20 | D31: 8.35 | E31: 32.89 | F31: 2.7 | G31: 23.72 | H31: 0
A32: SNOW SPRINGS CREEK | B32: 2025-09-22 | C32: 20 | D32: 0 | E32: 21.78 | F32: 0 | G32: 0 | H32: 0
A33: MUDDY CREEK | B33: 2025-09-22 | C33: 20 | D33: 0 | E33: 22.21 | F33: 0 | G33: 0 | H33: 0
A34: ANDERSON RIDGE | B34: 2025-09-22 | C34: 20 | D34: 0 | E34: 18.85 | F34: 0 | G34: 0 | H34: 0
A35: DODGE CREEK | B35: 2025-09-22 | C35: 20 | D35: 0 | E35: 0 | F35: 0 | G35: 0 | H35: 0
A36: COW CREEK | B36: 2025-09-22 | C36: 20 | D36: 0 | E36: 15.96 | F36: 0 | G36: 0 | H36: 0
A37: DODGE CREEK | B37: 2025-09-21 | C37: 20 | D37: 2.53 | E37: 0 | F37: 2.8 | G37: 0 | H37: 0
A38: COW CREEK | B38: 2025-09-21 | C38: 20 | D38: 10.74 | E38: 34.5 | F38: 2.81 | G38: 24.68 | H38: 0
A39: SNOW SPRINGS CREEK | B39: 2025-09-21 | C39: 20 | D39: 12.04 | E39: 38.79 | F39: 3.3 | G39: 28.04 | H39: 0
A40: ANDERSON RIDGE | B40: 2025-09-21 | C40: 20 | D40: 7.51 | E40: 31.56 | F40: 3.72 | G40: 26.97 | H40: 0
A41: MUDDY CREEK | B41: 2025-09-21 | C41: 20 | D41: 21.38 | E41: 39.51 | F41: 3.66 | G41: 29.68 | H41: 0
A42: DODGE CREEK | B42: 2025-09-20 | C42: 20 | D42: 1.76 | E42: 0 | F42: 1.46 | G42: 0 | H42: 0
A43: COW CREEK | B43: 2025-09-20 | C43: 20 | D43: 14.61 | E43: 35.39 | F43: 2.54 | G43: 23.84 | H43: 0
A44: SNOW SPRINGS CREEK | B44: 2025-09-20 | C44: 20 | D44: 10.42 | E44: 38.79 | F44: 3.22 | G44: 27.74 | H44: 0
A45: ANDERSON RIDGE | B45: 2025-09-20 | C45: 20 | D45: 25.45 | E45: 40.98 | F45: 2.92 | G45: 27.19 | H45: 0
A46: MUDDY CREEK | B46: 2025-09-20 | C46: 20 | D46: 11.93 | E46: 38.95 | F46: 2.44 | G46: 24.45 | H46: 0
A47: ANDERSON RIDGE | B47: 2025-09-19 | C47: 20 | D47: 23.61 | E47: 40.72 | F47: 1.94 | G47: 22.46 | H47: 0
A48: MUDDY CREEK | B48: 2025-09-19 | C48: 20 | D48: 28.08 | E48: 42.02 | F48: 2.38 | G48: 25.04 | H48: 0
A49: COW CREEK | B49: 2025-09-19 | C49: 20 | D49: 25.21 | E49: 36.46 | F49: 2.9 | G49: 25.69 | H49: 0
A50: DODGE CREEK | B50: 2025-09-19 | C50: 20 | D50: 1.5 | E50: 0 | F50: 1.2 | G50: 0 | H50: 0
A51: SNOW SPRINGS CREEK | B51: 2025-09-19 | C51: 20 | D51: 27.4 | E51: 42.44 | F51: 2.77 | G51: 26.95 | H51: 0
A52: DODGE CREEK | B52: 2025-09-18 | C52: 20 | D52: 9.22 | E52: 37.59 | F52: 1.69 | G52: 20.31 | H52: 0
A53: COW CREEK | B53: 2025-09-18 | C53: 20 | D53: 19.05 | E53: 34.62 | F53: 2.13 | G53: 21.78 | H53: 0
A54: SNOW SPRINGS CREEK | B54: 2025-09-18 | C54: 20 | D54: 23.82 | E54: 41.34 | F54: 2.1 | G54: 23.47 | H54: 0
A55: ANDERSON RIDGE | B55: 2025-09-18 | C55: 20 | D55: 22.3 | E55: 38.14 | F55: 2.6 | G55: 24.95 | H55: 0
A56: MUDDY CREEK | B56: 2025-09-18 | C56: 20 | D56: 26.97 | E56: 41.56 | F56: 1.87 | G56: 22.32 | H56: 0
A57: MUDDY CREEK | B57: 2025-09-17 | C57: 20 | D57: 16.99 | E57: 38.61 | F57: 1.76 | G57: 20.94 | H57: 0
A58: ANDERSON RIDGE | B58: 2025-09-17 | C58: 20 | D58: 0.83 | E58: 25.48 | F58: 1.1 | G58: 13.93 | H58: 0
A59: COW CREEK | B59: 2025-09-17 | C59: 20 | D59: 7.04 | E59: 30.16 | F59: 2.27 | G59: 21.03 | H59: 0
A60: DODGE CREEK | B60: 2025-09-17 | C60: 20 | D60: 0.27 | E60: 31.9 | F60: 1.64 | G60: 18.56 | H60: 0
A61: SNOW SPRINGS CREEK | B61: 2025-09-17 | C61: 20 | D61: 11.16 | E61: 38.39 | F61: 2.07 | G61: 22.52 | H61: 0
A62: DODGE CREEK | B62: 2025-09-16 | C62: 20 | D62: 0 | E62: 24.33 | F62: 0 | G62: 0 | H62: 0
A63: COW CREEK | B63: 2025-09-16 | C63: 20 | D63: 0 | E63: 17.93 | F63: 0 | G63: 0 | H63: 0
A64: SNOW SPRINGS CREEK | B64: 2025-09-16 | C64: 20 | D64: 11.38 | E64: 37.92 | F64: 2.25 | G64: 23.28 | H64: 0
A65: ANDERSON RIDGE | B65: 2025-09-16 | C65: 20 | D65: 9.74 | E65: 38.09 | F65: 2.39 | G65: 23.98 | H65: 0
A66: MUDDY CREEK | B66: 2025-09-16 | C66: 20 | D66: 24.11 | E66: 38.56 | F66: 2.27 | G66: 23.55 | H66: 0
A67: DODGE CREEK | B67: 2025-09-15 | C67: 20 | D67: 21.44 | E67: 39.59 | F67: 2.98 | G67: 27.02 | H67: 0
A68: SNOW SPRINGS CREEK | B68: 2025-09-15 | C68: 20 | D68: 21.36 | E68: 41.75 | F68: 3.22 | G68: 28.67 | H68: 0
A69: MUDDY CREEK | B69: 2025-09-15 | C69: 20 | D69: 29.07 | E69: 39.29 | F69: 3.73 | G69: 29.84 | H69: 0
A70: COW CREEK | B70: 2025-09-15 | C70: 20 | D70: 24.78 | E70: 35.95 | F70: 3.32 | G70: 27.17 | H70: 0
A71: ANDERSON RIDGE | B71: 2025-09-15 | C71: 20 | D71: 20.49 | E71: 39.37 | F71: 3.43 | G71: 28.74 | H71: 0
A72: DODGE CREEK | B72: 2025-09-14 | C72: 20 | D72: 26.48 | E72: 39.61 | F72: 4.67 | G72: 33.21 | H72: 0
A73: COW CREEK | B73: 2025-09-14 | C73: 20 | D73: 20.04 | E73: 35.31 | F73: 3.62 | G73: 28.02 | H73: 0
A74: SNOW SPRINGS CREEK | B74: 2025-09-14 | C74: 20 | D74: 27.41 | E74: 41.98 | F74: 3.92 | G74: 31.49 | H74: 0
A75: ANDERSON RIDGE | B75: 2025-09-14 | C75: 20 | D75: 24.37 | E75: 39.82 | F75: 3.56 | G75: 29.39 | H75: 0
A76: MUDDY CREEK | B76: 2025-09-14 | C76: 20 | D76: 33.13 | E76: 38.62 | F76: 3.62 | G76: 29.22 | H76: 0
A77: DODGE CREEK | B77: 2025-09-13 | C77: 20 | D77: 8.61 | E77: 36.71 | F77: 2.72 | G77: 25.03 | H77: 0
A78: COW CREEK | B78: 2025-09-13 | C78: 20 | D78: 2.33 | E78: 31.96 | F78: 1.49 | G78: 17.82 | H78: 0
A79: SNOW SPRINGS CREEK | B79: 2025-09-13 | C79: 20 | D79: 11.15 | E79: 39.51 | F79: 2.43 | G79: 24.59 | H79: 0
A80: ANDERSON RIDGE | B80: 2025-09-13 | C80: 20 | D80: 14.54 | E80: 39.68 | F80: 2 | G80: 22.52 | H80: 0
A81: MUDDY CREEK | B81: 2025-09-13 | C81: 20 | D81: 5.56 | E81: 33.6 | F81: 1.85 | G81: 20.1 | H81: 0
A82: MUDDY CREEK | B82: 2025-09-12 | C82: 20 | D82: 12.07 | E82: 36.96 | F82: 2.09 | G82: 22.25 | H82: 0
A83: ANDERSON RIDGE | B83: 2025-09-12 | C83: 20 | D83: 0 | E83: 26.83 | F83: 0 | G83: 0 | H83: 0
A84: DODGE CREEK | B84: 2025-09-12 | C84: 20 | D84: 6.89 | E84: 36.44 | F84: 2.07 | G84: 22 | H84: 0
A85: SNOW SPRINGS CREEK | B85: 2025-09-12 | C85: 20 | D85: 0 | E85: 27.79 | F85: 0 | G85: 0 | H85: 0
A86: COW CREEK | B86: 2025-09-12 | C86: 20 | D86: 0.21 | E86: 29.23 | F86: 1.43 | G86: 16.78 | H86: 0
A87: DODGE CREEK | B87: 2025-09-11 | C87: 20 | D87: 20.82 | E87: 39.79 | F87: 2.94 | G87: 26.93 | H87: 0
A88: COW CREEK | B88: 2025-09-11 | C88: 20 | D88: 22.48 | E88: 44.53 | F88: 3.96 | G88: 32.49 | H88: 0
A89: SNOW SPRINGS CREEK | B89: 2025-09-11 | C89: 20 | D89: 29 | E89: 43.01 | F89: 4.23 | G89: 32.98 | H89: 0
A90: ANDERSON RIDGE | B90: 2025-09-11 | C90: 20 | D90: 15.62 | E90: 39.51 | F90: 3.21 | G90: 27.92 | H90: 0
A91: MUDDY CREEK | B91: 2025-09-11 | C91: 20 | D91: 34.1 | E91: 38.51 | F91: 3.18 | G91: 27.47 | H91: 0
A92: DODGE CREEK | B92: 2025-09-10 | C92: 20 | D92: 17.79 | E92: 36.16 | F92: 2.42 | G92: 23.54 | H92: 0
A93: COW CREEK | B93: 2025-09-10 | C93: 20 | D93: 48.77 | E93: 46.54 | F93: 5.4 | G93: 38.27 | H93: 0
A94: SNOW SPRINGS CREEK | B94: 2025-09-10 | C94: 20 | D94: 42.23 | E94: 43.53 | F94: 5.77 | G94: 38.25 | H94: 0
A95: ANDERSON RIDGE | B95: 2025-09-10 | C95: 20 | D95: 46.56 | E95: 43.72 | F95: 5.29 | G95: 36.83 | H95: 0
A96: MUDDY CREEK | B96: 2025-09-10 | C96: 20 | D96: 25.93 | E96: 36.59 | F96: 3.33 | G96: 27.43 | H96: 0
A97: MUDDY CREEK | B97: 2025-09-09 | C97: 20 | D97: 17.61 | E97: 33.68 | F97: 2.05 | G97: 21.1 | H97: 0
A98: ANDERSON RIDGE | B98: 2025-09-09 | C98: 20 | D98: 18.4 | E98: 39.94 | F98: 2.1 | G98: 23.1 | H98: 0
A99: COW CREEK | B99: 2025-09-09 | C99: 20 | D99: 26.1 | E99: 43.06 | F99: 3.37 | G99: 29.7 | H99: 0
A100: DODGE CREEK | B100: 2025-09-09 | C100: 20 | D100: 15.15 | E100: 38.01 | F100: 2.36 | G100: 23.83 | H100: 0
A101: SNOW SPRINGS CREEK | B101: 2025-09-09 | C101: 20 | D101: 26.77 | E101: 40.89 | F101: 3.39 | G101: 29.08 | H101: 0
A102: DODGE CREEK | B102: 2025-09-08 | C102: 20 | D102: 24.78 | E102: 37.99 | F102: 2.67 | G102: 25.2 | H102: 0
A103: COW CREEK | B103: 2025-09-08 | C103: 20 | D103: 18.71 | E103: 40.5 | F103: 2.67 | G103: 25.93 | H103: 0
A104: SNOW SPRINGS CREEK | B104: 2025-09-08 | C104: 20 | D104: 20.56 | E104: 40.68 | F104: 2.94 | G104: 27.18 | H104: 0
A105: ANDERSON RIDGE | B105: 2025-09-08 | C105: 20 | D105: 27.26 | E105: 40.86 | F105: 2.75 | G105: 26.44 | H105: 0
A106: MUDDY CREEK | B106: 2025-09-08 | C106: 20 | D106: 32.24 | E106: 38.31 | F106: 2.48 | G106: 24.45 | H106: 0
A107: DODGE CREEK | B107: 2025-09-07 | C107: 20 | D107: 0 | E107: 22.63 | F107: 0 | G107: 0 | H107: 0
A108: COW CREEK | B108: 2025-09-07 | C108: 20 | D108: 25.48 | E108: 41.53 | F108: 3.82 | G108: 30.97 | H108: 0
A109: SNOW SPRINGS CREEK | B109: 2025-09-07 | C109: 20 | D109: 3.62 | E109: 34.8 | F109: 2.75 | G109: 24.52 | H109: 0
A110: ANDERSON RIDGE | B110: 2025-09-07 | C110: 20 | D110: 18.12 | E110: 38.78 | F110: 3.54 | G110: 28.95 | H110: 0
A111: MUDDY CREEK | B111: 2025-09-07 | C111: 20 | D111: 6.02 | E111: 31.79 | F111: 2 | G111: 20.34 | H111: 0
A112: ANDERSON RIDGE | B112: 2025-09-06 | C112: 20 | D112: 19.5 | E112: 40.47 | F112: 2.5 | G112: 25.18 | H112: 0
A113: MUDDY CREEK | B113: 2025-09-06 | C113: 20 | D113: 3.72 | E113: 34.02 | F113: 1.73 | G113: 19.6 | H113: 0
A114: COW CREEK | B114: 2025-09-06 | C114: 20 | D114: 17.12 | E114: 41.15 | F114: 2.43 | G114: 25.02 | H114: 0
A115: DODGE CREEK | B115: 2025-09-06 | C115: 20 | D115: 21.4 | E115: 35.37 | F115: 2.99 | G115: 25.68 | H115: 0
A116: SNOW SPRINGS CREEK | B116: 2025-09-06 | C116: 20 | D116: 10.38 | E116: 40.86 | F116: 3.22 | G116: 28.39 | H116: 0
A117: DODGE CREEK | B117: 2025-09-05 | C117: 20 | D117: 12.98 | E117: 32.4 | F117: 2.7 | G117: 23.55 | H117: 0
A118: COW CREEK | B118: 2025-09-05 | C118: 20 | D118: 21.67 | E118: 40.35 | F118: 3.22 | G118: 28.23 | H118: 0
A119: SNOW SPRINGS CREEK | B119: 2025-09-05 | C119: 20 | D119: 23.48 | E119: 43.67 | F119: 3.05 | G119: 28.56 | H119: 0
A120: ANDERSON RIDGE | B120: 2025-09-05 | C120: 20 | D120: 15.49 | E120: 38.24 | F120: 2.78 | G120: 25.74 | H120: 0
A121: MUDDY CREEK | B121: 2025-09-05 | C121: 20 | D121: 22.77 | E121: 43.56 | F121: 2.05 | G121: 23.74 | H121: 0
A122: MUDDY CREEK | B122: 2025-09-04 | C122: 20 | D122: 46.85 | E122: 45.52 | F122: 4.1 | G122: 33.37 | H122: 0
A123: ANDERSON RIDGE | B123: 2025-09-04 | C123: 20 | D123: 28.86 | E123: 41.54 | F123: 6.09 | G123: 38.37 | H123: 0
A124: COW CREEK | B124: 2025-09-04 | C124: 20 | D124: 50.15 | E124: 43.08 | F124: 5.11 | G124: 36 | H124: 0
A125: DODGE CREEK | B125: 2025-09-04 | C125: 20 | D125: 20.23 | E125: 32.84 | F125: 5.54 | G125: 32.98 | H125: 0
A126: SNOW SPRINGS CREEK | B126: 2025-09-04 | C126: 20 | D126: 49.63 | E126: 47.12 | F126: 5.84 | G126: 39.9 | H126: 0
A127: DODGE CREEK | B127: 2025-09-03 | C127: 20 | D127: 35.2 | E127: 33.42 | F127: 3.44 | G127: 26.71 | H127: 0
A128: COW CREEK | B128: 2025-09-03 | C128: 20 | D128: 38.17 | E128: 41.22 | F128: 2.48 | G128: 25.31 | H128: 0
A129: SNOW SPRINGS CREEK | B129: 2025-09-03 | C129: 20 | D129: 47.3 | E129: 45.96 | F129: 3.16 | G129: 29.73 | H129: 0
A130: ANDERSON RIDGE | B130: 2025-09-03 | C130: 20 | D130: 40.54 | E130: 42.27 | F130: 2.75 | G130: 26.81 | H130: 0
A131: MUDDY CREEK | B131: 2025-09-03 | C131: 20 | D131: 43.85 | E131: 44.24 | F131: 2.44 | G131: 25.94 | H131: 0

Sheet East
A1: stationName | B1: observationTime | C1: observationTime - Copy | D1: ignitionComponent | E1: energyReleaseComponent | F1: spreadComponent | G1: burningIndex | H1: NFDRQAFlag
A2: ECHETA | B2: 2025-09-28 | C2: 20 | D2: 35.18 | E2: 43.7 | F2: 3.66 | G2: 31.08 | H2: 0
A3: ROCHELLE HILLS | B3: 2025-09-28 | C3: 20 | D3: 25.98 | E3: 38.97 | F3: 2.89 | G3: 26.44 | H3: 0
A4: POKER CREEK | B4: 2025-09-28 | C4: 20 | D4: 20.98 | E4: 41.26 | F4: 2.36 | G4: 24.75 | H4: 0
A5: ESTERBROOK | B5: 2025-09-28 | C5: 20 | D5: 18.51 | E5: 33.58 | F5: 2.46 | G5: 22.95 | H5: 0
A6: ECHETA | B6: 2025-09-27 | C6: 20 | D6: 41.03 | E6: 42.73 | F6: 3.87 | G6: 31.56 | H6: 0
A7: ROCHELLE HILLS | B7: 2025-09-27 | C7: 20 | D7: 31.35 | E7: 38.07 | F7: 3.3 | G7: 27.79 | H7: 0
A8: POKER CREEK | B8: 2025-09-27 | C8: 20 | D8: 25.94 | E8: 40.43 | F8: 2.51 | G8: 25.23 | H8: 0
A9: ESTERBROOK | B9: 2025-09-27 | C9: 20 | D9: 22.34 | E9: 32.33 | F9: 2.59 | G9: 23.06 | H9: 0
A10: ECHETA | B10: 2025-09-26 | C10: 20 | D10: 34.16 | E10: 41.05 | F10: 2.95 | G10: 27.36 | H10: 0
A11: ROCHELLE HILLS | B11: 2025-09-26 | C11: 20 | D11: 31.91 | E11: 36.58 | F11: 2.87 | G11: 25.62 | H11: 0
A12: POKER CREEK | B12: 2025-09-26 | C12: 20 | D12: 25.25 | E12: 39.01 | F12: 2.49 | G12: 24.71 | H12: 0
A13: ESTERBROOK | B13: 2025-09-26 | C13: 20 | D13: 23.1 | E13: 30.2 | F13: 2.42 | G13: 21.66 | H13: 0
A14: ECHETA | B14: 2025-09-25 | C14: 20 | D14: 37.06 | E14: 38.91 | F14: 2.81 | G14: 26.08 | H14: 0
A15: ROCHELLE HILLS | B15: 2025-09-25 | C15: 20 | D15: 28.62 | E15: 33.87 | F15: 2.19 | G15: 21.84 | H15: 0
A16: POKER CREEK | B16: 2025-09-25 | C16: 20 | D16: 27.71 | E16: 37.7 | F16: 2.76 | G16: 25.5 | H16: 0
A17: ESTERBROOK | B17: 2025-09-25 | C17: 20 | D17: 22 | E17: 27.63 | F17: 2.03 | G17: 19.17 | H17: 0
A18: ECHETA | B18: 2025-09-24 | C18: 20 | D18: 37.34 | E18: 36.06 | F18: 3.74 | G18: 28.72 | H18: 0
A19: ROCHELLE HILLS | B19: 2025-09-24 | C19: 20 | D19: 22.73 | E19: 30.47 | F19: 2.59 | G19: 22.44 | H19: 0
A20: POKER CREEK | B20: 2025-09-24 | C20: 20 | D20: 17.84 | E20: 34.78 | F20: 2.27 | G20: 22.45 | H20: 0
A21: ESTERBROOK | B21: 2025-09-24 | C21: 20 | D21: 13.53 | E21: 24.16 | F21: 2.13 | G21: 18.44 | H21: 0
A22: ECHETA | B22: 2025-09-23 | C22: 20 | D22: 14.81 | E22: 32.76 | F22: 1.98 | G22: 20.53 | H22: 0
A23: ROCHELLE HILLS | B23: 2025-09-23 | C23: 20 | D23: 9.51 | E23: 26.99 | F23: 1.68 | G23: 17.4 | H23: 0
A24: POKER CREEK | B24: 2025-09-23 | C24: 20 | D24: 7.13 | E24: 31.1 | F24: 1.76 | G24: 18.98 | H24: 0
A25: ESTERBROOK | B25: 2025-09-23 | C25: 20 | D25: 2.66 | E25: 18.43 | F25: 1.39 | G25: 13.36 | H25: 0
A26: ECHETA | B26: 2025-09-22 | C26: 20 | D26: 6.84 | E26: 29.77 | F26: 4.91 | G26: 29.82 | H26: 0
A27: ROCHELLE HILLS | B27: 2025-09-22 | C27: 20 | D27: 0.14 | E27: 18.45 | F27: 2.03 | G27: 15.95 | H27: 0
A28: POKER CREEK | B28: 2025-09-22 | C28: 20 | D28: 0 | E28: 17.31 | F28: 0 | G28: 0 | H28: 0
A29: ESTERBROOK | B29: 2025-09-22 | C29: 20 | D29: 0 | E29: 16.22 | F29: 0 | G29: 0 | H29: 0
A30: ECHETA | B30: 2025-09-21 | C30: 20 | D30: 30.31 | E30: 34.81 | F30: 2.08 | G30: 21.58 | H30: 0
A31: ROCHELLE HILLS | B31: 2025-09-21 | C31: 20 | D31: 25.74 | E31: 31.78 | F31: 1.96 | G31: 20.16 | H31: 0
A32: POKER CREEK | B32: 2025-09-21 | C32: 20 | D32: 21.54 | E32: 38.62 | F32: 2.38 | G32: 24.07 | H32: 0
A33: ESTERBROOK | B33: 2025-09-21 | C33: 20 | D33: 14.12 | E33: 28.06 | F33: 1.97 | G33: 19.06 | H33: 0
A34: ROCHELLE HILLS | B34: 2025-09-20 | C34: 20 | D34: 13.87 | E34: 27.59 | F34: 1.65 | G34: 17.44 | H34: 0
A35: POKER CREEK | B35: 2025-09-20 | C35: 20 | D35: 18.33 | E35: 37.36 | F35: 1.79 | G35: 20.8 | H35: 0
A36: ESTERBROOK | B36: 2025-09-20 | C36: 20 | D36: 5.73 | E36: 24.35 | F36: 1.42 | G36: 15.38 | H36: 0
A37: ECHETA | B37: 2025-09-20 | C37: 20 | D37: 20.47 | E37: 30.92 | F37: 1.82 | G37: 19.24 | H37: 0
A38: ECHETA | B38: 2025-09-19 | C38: 20 | D38: 14.86 | E38: 28.22 | F38: 1.98 | G38: 19.16 | H38: 0
A39: ROCHELLE HILLS | B39: 2025-09-19 | C39: 20 | D39: 10.81 | E39: 27.21 | F39: 1.71 | G39: 17.62 | H39: 0
A40: POKER CREEK | B40: 2025-09-19 | C40: 20 | D40: 15.64 | E40: 36.48 | F40: 1.72 | G40: 20.19 | H40: 0
A41: ESTERBROOK | B41: 2025-09-19 | C41: 20 | D41: 7.43 | E41: 24.74 | F41: 1.49 | G41: 15.8 | H41: 0
A42: ECHETA | B42: 2025-09-18 | C42: 20 | D42: 15.55 | E42: 27.36 | F42: 2.96 | G42: 22.73 | H42: 0
A43: ROCHELLE HILLS | B43: 2025-09-18 | C43: 20 | D43: 10.7 | E43: 26.02 | F43: 2.39 | G43: 20.11 | H43: 0
A44: POKER CREEK | B44: 2025-09-18 | C44: 20 | D44: 16.29 | E44: 35.25 | F44: 1.88 | G44: 20.74 | H44: 0
A45: ESTERBROOK | B45: 2025-09-18 | C45: 20 | D45: 6.39 | E45: 22.63 | F45: 1.45 | G45: 15 | H45: 0
A46: ECHETA | B46: 2025-09-17 | C46: 20 | D46: 0 | E46: 12.62 | F46: 0 | G46: 0 | H46: 0
A47: ROCHELLE HILLS | B47: 2025-09-17 | C47: 20 | D47: 0.52 | E47: 21.19 | F47: 1.49 | G47: 14.71 | H47: 0
A48: POKER CREEK | B48: 2025-09-17 | C48: 20 | D48: 1.91 | E48: 29.38 | F48: 1.22 | G48: 15.62 | H48: 0
A49: ESTERBROOK | B49: 2025-09-17 | C49: 20 | D49: 0 | E49: 12.18 | F49: 0 | G49: 0 | H49: 0
A50: ECHETA | B50: 2025-09-16 | C50: 20 | D50: 6.17 | E50: 28.23 | F50: 1.71 | G50: 17.89 | H50: 0
A51: ROCHELLE HILLS | B51: 2025-09-16 | C51: 20 | D51: 4.61 | E51: 28.39 | F51: 1.79 | G51: 18.35 | H51: 0
A52: POKER CREEK | B52: 2025-09-16 | C52: 20 | D52: 0.9 | E52: 29.76 | F52: 1.06 | G52: 14.74 | H52: 0
A53: ESTERBROOK | B53: 2025-09-16 | C53: 20 | D53: 0 | E53: 18.73 | F53: 0 | G53: 0 | H53: 0
A54: ECHETA | B54: 2025-09-15 | C54: 20 | D54: 0 | E54: 19.61 | F54: 0 | G54: 0 | H54: 0
A55: ROCHELLE HILLS | B55: 2025-09-15 | C55: 20 | D55: 1.62 | E55: 24.73 | F55: 1.71 | G55: 16.85 | H55: 0
A56: POKER CREEK | B56: 2025-09-15 | C56: 20 | D56: 9.46 | E56: 37.98 | F56: 2.19 | G56: 22.99 | H56: 0
A57: ESTERBROOK | B57: 2025-09-15 | C57: 20 | D57: 15.36 | E57: 39.87 | F57: 1.85 | G57: 21.78 | H57: 0
A58: ECHETA | B58: 2025-09-14 | C58: 20 | D58: 21.32 | E58: 37.04 | F58: 1.99 | G58: 21.76 | H58: 0
A59: ROCHELLE HILLS | B59: 2025-09-14 | C59: 20 | D59: 19.95 | E59: 33.45 | F59: 2.13 | G59: 21.4 | H59: 0
A60: ESTERBROOK | B60: 2025-09-14 | C60: 20 | D60: 21.1 | E60: 39.13 | F60: 2.01 | G60: 22.39 | H60: 0
A61: POKER CREEK | B61: 2025-09-14 | C61: 20 | D61: 20.29 | E61: 40.15 | F61: 2.17 | G61: 23.48 | H61: 0
A62: ECHETA | B62: 2025-09-13 | C62: 20 | D62: 9.65 | E62: 35.6 | F62: 2.16 | G62: 22.17 | H62: 0
A63: ROCHELLE HILLS | B63: 2025-09-13 | C63: 20 | D63: 24.07 | E63: 35 | F63: 2.62 | G63: 24.06 | H63: 0
A64: POKER CREEK | B64: 2025-09-13 | C64: 20 | D64: 10.46 | E64: 37.42 | F64: 2.21 | G64: 22.95 | H64: 0
A65: ESTERBROOK | B65: 2025-09-13 | C65: 20 | D65: 9.28 | E65: 37.17 | F65: 1.68 | G65: 20.14 | H65: 0
A66: ECHETA | B66: 2025-09-12 | C66: 20 | D66: 0 | E66: 27.52 | F66: 0 | G66: 0 | H66: 0
A67: ROCHELLE HILLS | B67: 2025-09-12 | C67: 20 | D67: 0.76 | E67: 28.16 | F67: 1.34 | G67: 15.98 | H67: 0
A68: POKER CREEK | B68: 2025-09-12 | C68: 20 | D68: 0 | E68: 24.9 | F68: 0 | G68: 0 | H68: 0
A69: ESTERBROOK | B69: 2025-09-12 | C69: 20 | D69: 0 | E69: 20.63 | F69: 0 | G69: 0 | H69: 0
A70: ECHETA | B70: 2025-09-11 | C70: 20 | D70: 24.68 | E70: 45.72 | F70: 3.04 | G70: 29.14 | H70: 0
A71: ROCHELLE HILLS | B71: 2025-09-11 | C71: 20 | D71: 37.38 | E71: 40.94 | F71: 3.47 | G71: 29.42 | H71: 0
A72: POKER CREEK | B72: 2025-09-11 | C72: 20 | D72: 25.28 | E72: 45.43 | F72: 3.34 | G72: 30.32 | H72: 0
A73: ESTERBROOK | B73: 2025-09-11 | C73: 20 | D73: 21.96 | E73: 43.06 | F73: 2.19 | G73: 24.36 | H73: 0
A74: ROCHELLE HILLS | B74: 2025-09-10 | C74: 20 | D74: 30.15 | E74: 42.46 | F74: 3.95 | G74: 31.75 | H74: 0
A75: ECHETA | B75: 2025-09-10 | C75: 20 | D75: 44.02 | E75: 47.94 | F75: 6.11 | G75: 41.05 | H75: 0
A76: POKER CREEK | B76: 2025-09-10 | C76: 20 | D76: 35.89 | E76: 45.05 | F76: 3.23 | G76: 29.75 | H76: 0
A77: ESTERBROOK | B77: 2025-09-10 | C77: 20 | D77: 19.97 | E77: 42.3 | F77: 2.31 | G77: 24.77 | H77: 0

Sheet Laramie
A1: stationName | B1: observationTime | C1: observationTime - Copy | D1: ignitionComponent | E1: energyReleaseComponent | F1: spreadComponent | G1: burningIndex | H1: NFDRQAFlag
A2: DODGE CREEK | B2: 2025-09-28 | C2: 20 | D2: 18.74 | E2: 18.14 | F2: 3.56 | G2: 20.47 | H2: 0
A3: ESTERBROOK | B3: 2025-09-28 | C3: 20 | D3: 18.51 | E3: 33.58 | F3: 2.46 | G3: 22.95 | H3: 0
A4: CASPER MOUNTAIN | B4: 2025-09-28 | C4: 20 | D4: 15.52 | E4: 31.47 | F4: 2.03 | G4: 20.36 | H4: 0
A5: DODGE CREEK | B5: 2025-09-27 | C5: 20 | D5: 20.09 | E5: 15.49 | F5: 2.93 | G5: 17.4 | H5: 0
A6: ESTERBROOK | B6: 2025-09-27 | C6: 20 | D6: 22.34 | E6: 32.33 | F6: 2.59 | G6: 23.06 | H6: 0
A7: CASPER MOUNTAIN | B7: 2025-09-27 | C7: 20 | D7: 19.41 | E7: 30.4 | F7: 2.14 | G7: 20.54 | H7: 0
A8: DODGE CREEK | B8: 2025-09-26 | C8: 20 | D8: 23.62 | E8: 11.56 | F8: 3.51 | G8: 16.53 | H8: 0
A9: ESTERBROOK | B9: 2025-09-26 | C9: 20 | D9: 23.1 | E9: 30.2 | F9: 2.42 | G9: 21.66 | H9: 0
A10: CASPER MOUNTAIN | B10: 2025-09-26 | C10: 20 | D10: 18.46 | E10: 28.4 | F10: 1.95 | G10: 19.07 | H10: 0
A11: DODGE CREEK | B11: 2025-09-25 | C11: 20 | D11: 23.66 | E11: 6.43 | F11: 3.5 | G11: 12.61 | H11: 0
A12: ESTERBROOK | B12: 2025-09-25 | C12: 20 | D12: 22 | E12: 27.63 | F12: 2.03 | G12: 19.17 | H12: 0
A13: CASPER MOUNTAIN | B13: 2025-09-25 | C13: 20 | D13: 19.17 | E13: 26.6 | F13: 2.13 | G13: 19.28 | H13: 0
A14: CASPER MOUNTAIN | B14: 2025-09-24 | C14: 20 | D14: 10.01 | E14: 23.16 | F14: 1.71 | G14: 16.35 | H14: 0
A15: DODGE CREEK | B15: 2025-09-24 | C15: 20 | D15: 10.47 | E15: 0 | F15: 2.59 | G15: 0 | H15: 0
A16: ESTERBROOK | B16: 2025-09-24 | C16: 20 | D16: 13.53 | E16: 24.16 | F16: 2.13 | G16: 18.44 | H16: 0
A17: ESTERBROOK | B17: 2025-09-23 | C17: 20 | D17: 2.66 | E17: 18.43 | F17: 1.39 | G17: 13.36 | H17: 0
A18: CASPER MOUNTAIN | B18: 2025-09-23 | C18: 20 | D18: 2.09 | E18: 18.22 | F18: 1.13 | G18: 12.1 | H18: 0
A19: DODGE CREEK | B19: 2025-09-23 | C19: 20 | D19: 0.04 | E19: 0 | F19: 0.48 | G19: 0 | H19: 0
A20: DODGE CREEK | B20: 2025-09-22 | C20: 20 | D20: 0 | E20: 0 | F20: 0 | G20: 0 | H20: 0
A21: ESTERBROOK | B21: 2025-09-22 | C21: 20 | D21: 0 | E21: 16.22 | F21: 0 | G21: 0 | H21: 0
A22: CASPER MOUNTAIN | B22: 2025-09-22 | C22: 20 | D22: 0 | E22: 15.41 | F22: 0 | G22: 0 | H22: 0
A23: DODGE CREEK | B23: 2025-09-21 | C23: 20 | D23: 2.53 | E23: 0 | F23: 2.8 | G23: 0 | H23: 0
A24: ESTERBROOK | B24: 2025-09-21 | C24: 20 | D24: 14.12 | E24: 28.06 | F24: 1.97 | G24: 19.06 | H24: 0
A25: CASPER MOUNTAIN | B25: 2025-09-21 | C25: 20 | D25: 0.73 | E25: 22.57 | F25: 1.41 | G25: 14.76 | H25: 0
A26: DODGE CREEK | B26: 2025-09-20 | C26: 20 | D26: 1.76 | E26: 0 | F26: 1.46 | G26: 0 | H26: 0
A27: ESTERBROOK | B27: 2025-09-20 | C27: 20 | D27: 5.73 | E27: 24.35 | F27: 1.42 | G27: 15.38 | H27: 0
A28: CASPER MOUNTAIN | B28: 2025-09-20 | C28: 20 | D28: 10.57 | E28: 27.68 | F28: 1.46 | G28: 16.48 | H28: 0
A29: DODGE CREEK | B29: 2025-09-19 | C29: 20 | D29: 1.5 | E29: 0 | F29: 1.2 | G29: 0 | H29: 0
A30: ESTERBROOK | B30: 2025-09-19 | C30: 20 | D30: 7.43 | E30: 24.74 | F30: 1.49 | G30: 15.8 | H30: 0
A31: CASPER MOUNTAIN | B31: 2025-09-19 | C31: 20 | D31: 12.64 | E31: 26.33 | F31: 1.64 | G31: 17.01 | H31: 0
A32: DODGE CREEK | B32: 2025-09-18 | C32: 20 | D32: 9.22 | E32: 37.59 | F32: 1.69 | G32: 20.31 | H32: 0
A33: ESTERBROOK | B33: 2025-09-18 | C33: 20 | D33: 6.39 | E33: 22.63 | F33: 1.45 | G33: 15 | H33: 0
A34: CASPER MOUNTAIN | B34: 2025-09-18 | C34: 20 | D34: 9.27 | E34: 26.42 | F34: 1.55 | G34: 16.58 | H34: 0
A35: DODGE CREEK | B35: 2025-09-17 | C35: 20 | D35: 0.27 | E35: 31.9 | F35: 1.64 | G35: 18.56 | H35: 0
A36: ESTERBROOK | B36: 2025-09-17 | C36: 20 | D36: 0 | E36: 12.18 | F36: 0 | G36: 0 | H36: 0
A37: CASPER MOUNTAIN | B37: 2025-09-17 | C37: 20 | D37: 0 | E37: 13.29 | F37: 0 | G37: 0 | H37: 0
A38: DODGE CREEK | B38: 2025-09-16 | C38: 20 | D38: 0 | E38: 24.33 | F38: 0 | G38: 0 | H38: 0
A39: ESTERBROOK | B39: 2025-09-16 | C39: 20 | D39: 0 | E39: 18.73 | F39: 0 | G39: 0 | H39: 0
A40: CASPER MOUNTAIN | B40: 2025-09-16 | C40: 20 | D40: 0 | E40: 21.04 | F40: 0 | G40: 0 | H40: 0
A41: DODGE CREEK | B41: 2025-09-15 | C41: 20 | D41: 21.44 | E41: 39.59 | F41: 2.98 | G41: 27.02 | H41: 0
A42: ESTERBROOK | B42: 2025-09-15 | C42: 20 | D42: 15.36 | E42: 39.87 | F42: 1.85 | G42: 21.78 | H42: 0
A43: CASPER MOUNTAIN | B43: 2025-09-15 | C43: 20 | D43: 0 | E43: 25.94 | F43: 0 | G43: 0 | H43: 0
A44: CASPER MOUNTAIN | B44: 2025-09-14 | C44: 20 | D44: 18.28 | E44: 39.64 | F44: 1.79 | G44: 21.39 | H44: 0
A45: ESTERBROOK | B45: 2025-09-14 | C45: 20 | D45: 21.1 | E45: 39.13 | F45: 2.01 | G45: 22.39 | H45: 0
A46: DODGE CREEK | B46: 2025-09-14 | C46: 20 | D46: 26.48 | E46: 39.61 | F46: 4.67 | G46: 33.21 | H46: 0
A47: DODGE CREEK | B47: 2025-09-13 | C47: 20 | D47: 8.61 | E47: 36.71 | F47: 2.72 | G47: 25.03 | H47: 0
A48: ESTERBROOK | B48: 2025-09-13 | C48: 20 | D48: 9.28 | E48: 37.17 | F48: 1.68 | G48: 20.14 | H48: 0
A49: CASPER MOUNTAIN | B49: 2025-09-13 | C49: 20 | D49: 11.91 | E49: 38.75 | F49: 1.62 | G49: 20.21 | H49: 0
A50: DODGE CREEK | B50: 2025-09-12 | C50: 20 | D50: 6.89 | E50: 36.44 | F50: 2.07 | G50: 22 | H50: 0
A51: ESTERBROOK | B51: 2025-09-12 | C51: 20 | D51: 0 | E51: 20.63 | F51: 0 | G51: 0 | H51: 0
A52: CASPER MOUNTAIN | B52: 2025-09-12 | C52: 20 | D52: 5.18 | E52: 36.87 | F52: 1.54 | G52: 19.31 | H52: 0
A53: DODGE CREEK | B53: 2025-09-11 | C53: 20 | D53: 20.82 | E53: 39.79 | F53: 2.94 | G53: 26.93 | H53: 0
A54: ESTERBROOK | B54: 2025-09-11 | C54: 20 | D54: 21.96 | E54: 43.06 | F54: 2.19 | G54: 24.36 | H54: 0
A55: CASPER MOUNTAIN | B55: 2025-09-11 | C55: 20 | D55: 26.41 | E55: 42.65 | F55: 2.94 | G55: 27.76 | H55: 0
A56: DODGE CREEK | B56: 2025-09-10 | C56: 20 | D56: 17.79 | E56: 36.16 | F56: 2.42 | G56: 23.54 | H56: 0
A57: ESTERBROOK | B57: 2025-09-10 | C57: 20 | D57: 19.97 | E57: 42.3 | F57: 2.31 | G57: 24.77 | H57: 0
A58: CASPER MOUNTAIN | B58: 2025-09-10 | C58: 20 | D58: 29.86 | E58: 42.08 | F58: 2.63 | G58: 26.21 | H58: 0

Sheet South Bighorns
A1: stationName | B1: observationTime | C1: observationTime - Copy | D1: ignitionComponent | E1: energyReleaseComponent | F1: spreadComponent | G1: burningIndex | H1: NFDRQAFlag
A2: CASPER MOUNTAIN | B2: 2025-09-28 | C2: 20 | D2: 15.52 | E2: 31.47 | F2: 2.03 | G2: 20.36 | H2: 0
A3: POKER CREEK | B3: 2025-09-28 | C3: 20 | D3: 20.98 | E3: 41.26 | F3: 2.36 | G3: 24.75 | H3: 0
A4: POKER CREEK | B4: 2025-09-27 | C4: 20 | D4: 25.94 | E4: 40.43 | F4: 2.51 | G4: 25.23 | H4: 0
A5: CASPER MOUNTAIN | B5: 2025-09-27 | C5: 20 | D5: 19.41 | E5: 30.4 | F5: 2.14 | G5: 20.54 | H5: 0
A6: CASPER MOUNTAIN | B6: 2025-09-26 | C6: 20 | D6: 18.46 | E6: 28.4 | F6: 1.95 | G6: 19.07 | H6: 0
A7: POKER CREEK | B7: 2025-09-26 | C7: 20 | D7: 25.25 | E7: 39.01 | F7: 2.49 | G7: 24.71 | H7: 0
A8: CASPER MOUNTAIN | B8: 2025-09-25 | C8: 20 | D8: 19.17 | E8: 26.6 | F8: 2.13 | G8: 19.28 | H8: 0
A9: POKER CREEK | B9: 2025-09-25 | C9: 20 | D9: 27.71 | E9: 37.7 | F9: 2.76 | G9: 25.5 | H9: 0
A10: CASPER MOUNTAIN | B10: 2025-09-24 | C10: 20 | D10: 10.01 | E10: 23.16 | F10: 1.71 | G10: 16.35 | H10: 0
A11: POKER CREEK | B11: 2025-09-24 | C11: 20 | D11: 17.84 | E11: 34.78 | F11: 2.27 | G11: 22.45 | H11: 0
A12: POKER CREEK | B12: 2025-09-23 | C12: 20 | D12: 7.13 | E12: 31.1 | F12: 1.76 | G12: 18.98 | H12: 0
A13: CASPER MOUNTAIN | B13: 2025-09-23 | C13: 20 | D13: 2.09 | E13: 18.22 | F13: 1.13 | G13: 12.1 | H13: 0
A14: CASPER MOUNTAIN | B14: 2025-09-22 | C14: 20 | D14: 0 | E14: 15.41 | F14: 0 | G14: 0 | H14: 0
A15: POKER CREEK | B15: 2025-09-22 | C15: 20 | D15: 0 | E15: 17.31 | F15: 0 | G15: 0 | H15: 0
A16: CASPER MOUNTAIN | B16: 2025-09-21 | C16: 20 | D16: 0.73 | E16: 22.57 | F16: 1.41 | G16: 14.76 | H16: 0
A17: POKER CREEK | B17: 2025-09-21 | C17: 20 | D17: 21.54 | E17: 38.62 | F17: 2.38 | G17: 24.07 | H17: 0
A18: CASPER MOUNTAIN | B18: 2025-09-20 | C18: 20 | D18: 10.57 | E18: 27.68 | F18: 1.46 | G18: 16.48 | H18: 0
A19: POKER CREEK | B19: 2025-09-20 | C19: 20 | D19: 18.33 | E19: 37.36 | F19: 1.79 | G19: 20.8 | H19: 0
A20: CASPER MOUNTAIN | B20: 2025-09-19 | C20: 20 | D20: 12.64 | E20: 26.33 | F20: 1.64 | G20: 17.01 | H20: 0
A21: POKER CREEK | B21: 2025-09-19 | C21: 20 | D21: 15.64 | E21: 36.48 | F21: 1.72 | G21: 20.19 | H21: 0
A22: POKER CREEK | B22: 2025-09-18 | C22: 20 | D22: 16.29 | E22: 35.25 | F22: 1.88 | G22: 20.74 | H22: 0
A23: CASPER MOUNTAIN | B23: 2025-09-18 | C23: 20 | D23: 9.27 | E23: 26.42 | F23: 1.55 | G23: 16.58 | H23: 0
A24: CASPER MOUNTAIN | B24: 2025-09-17 | C24: 20 | D24: 0 | E24: 13.29 | F24: 0 | G24: 0 | H24: 0
A25: POKER CREEK | B25: 2025-09-17 | C25: 20 | D25: 1.91 | E25: 29.38 | F25: 1.22 | G25: 15.62 | H25: 0
A26: CASPER MOUNTAIN | B26: 2025-09-16 | C26: 20 | D26: 0 | E26: 21.04 | F26: 0 | G26: 0 | H26: 0
A27: POKER CREEK | B27: 2025-09-16 | C27: 20 | D27: 0.9 | E27: 29.76 | F27: 1.06 | G27: 14.74 | H27: 0
A28: CASPER MOUNTAIN | B28: 2025-09-15 | C28: 20 | D28: 0 | E28: 25.94 | F28: 0 | G28: 0 | H28: 0
A29: POKER CREEK | B29: 2025-09-15 | C29: 20 | D29: 9.46 | E29: 37.98 | F29: 2.19 | G29: 22.99 | H29: 0
A30: POKER CREEK | B30: 2025-09-14 | C30: 20 | D30: 20.29 | E30: 40.15 | F30: 2.17 | G30: 23.48 | H30: 0
A31: CASPER MOUNTAIN | B31: 2025-09-14 | C31: 20 | D31: 18.28 | E31: 39.64 | F31: 1.79 | G31: 21.39 | H31: 0
A32: CASPER MOUNTAIN | B32: 2025-09-13 | C32: 20 | D32: 11.91 | E32: 38.75 | F32: 1.62 | G32: 20.21 | H32: 0
A33: POKER CREEK | B33: 2025-09-13 | C33: 20 | D33: 10.46 | E33: 37.42 | F33: 2.21 | G33: 22.95 | H33: 0
A34: CASPER MOUNTAIN | B34: 2025-09-12 | C34: 20 | D34: 5.18 | E34: 36.87 | F34: 1.54 | G34: 19.31 | H34: 0
A35: POKER CREEK | B35: 2025-09-12 | C35: 20 | D35: 0 | E35: 24.9 | F35: 0 | G35: 0 | H35: 0
A36: CASPER MOUNTAIN | B36: 2025-09-11 | C36: 20 | D36: 26.41 | E36: 42.65 | F36: 2.94 | G36: 27.76 | H36: 0
A37: POKER CREEK | B37: 2025-09-11 | C37: 20 | D37: 25.28 | E37: 45.43 | F37: 3.34 | G37: 30.32 | H37: 0
A38: CASPER MOUNTAIN | B38: 2025-09-10 | C38: 20 | D38: 29.86 | E38: 42.08 | F38: 2.63 | G38: 26.21 | H38: 0
A39: POKER CREEK | B39: 2025-09-10 | C39: 20 | D39: 35.89 | E39: 45.05 | F39: 3.23 | G39: 29.75 | H39: 0

Sheet Med-Bow
A1: stationName | B1: observationTime | C1: observationTime - Copy | D1: ignitionComponent | E1: energyReleaseComponent | F1: spreadComponent | G1: burningIndex | H1: NFDRQAFlag
A2: SAWMILL PARK | B2: 2025-09-28 | C2: 20 | D2: 8.09 | E2: 46.35 | F2: 7.9 | G2: 45.47 | H2: 0
A3: DRY LAKE | B3: 2025-09-28 | C3: 20 | D3: 4.9 | E3: 56.22 | F3: 4.1 | G3: 36.76 | H3: 0
A4: SANDSTONE | B4: 2025-09-28 | C4: 20 | D4: 10.65 | E4: 54.91 | F4: 8.22 | G4: 50.06 | H4: 0
A5: GUNSIGHT | B5: 2025-09-28 | C5: 20 | D5: 10.21 | E5: 58.95 | F5: 7.19 | G5: 48.65 | H5: 0
A6: SAWMILL PARK | B6: 2025-09-27 | C6: 20 | D6: 12.38 | E6: 43.33 | F6: 7.44 | G6: 42.89 | H6: 0
A7: SANDSTONE | B7: 2025-09-27 | C7: 20 | D7: 18.18 | E7: 51.63 | F7: 9.1 | G7: 51.01 | H7: 0
A8: GUNSIGHT | B8: 2025-09-27 | C8: 20 | D8: 16.34 | E8: 62.73 | F8: 7.89 | G8: 52.26 | H8: 0
A9: DRY LAKE | B9: 2025-09-27 | C9: 20 | D9: 10.2 | E9: 62.42 | F9: 4.62 | G9: 40.76 | H9: 0
A10: SAWMILL PARK | B10: 2025-09-26 | C10: 20 | D10: 0 | E10: 0 | F10: 0 | G10: 0 | H10: 0
A11: SANDSTONE | B11: 2025-09-26 | C11: 20 | D11: 0 | E11: 3.03 | F11: 0 | G11: 0 | H11: 0
A12: GUNSIGHT | B12: 2025-09-26 | C12: 20 | D12: 18.08 | E12: 61.6 | F12: 7.1 | G12: 49.36 | H12: 0
A13: DRY LAKE | B13: 2025-09-26 | C13: 20 | D13: 13.3 | E13: 61.12 | F13: 5.72 | G13: 44.54 | H13: 0
A14: SAWMILL PARK | B14: 2025-09-25 | C14: 20 | D14: 0 | E14: 0 | F14: 0 | G14: 0 | H14: 0
A15: SANDSTONE | B15: 2025-09-25 | C15: 20 | D15: 0 | E15: 4.43 | F15: 0 | G15: 0 | H15: 0
A16: GUNSIGHT | B16: 2025-09-25 | C16: 20 | D16: 18.63 | E16: 56.44 | F16: 6.22 | G16: 44.61 | H16: 0
A17: DRY LAKE | B17: 2025-09-25 | C17: 20 | D17: 15.06 | E17: 56.71 | F17: 5.05 | G17: 40.61 | H17: 0
A18: GUNSIGHT | B18: 2025-09-24 | C18: 20 | D18: 11.66 | E18: 46.62 | F18: 4.75 | G18: 36.09 | H18: 0
A19: DRY LAKE | B19: 2025-09-24 | C19: 20 | D19: 7.57 | E19: 45.41 | F19: 3.7 | G19: 31.8 | H19: 0
A20: SAWMILL PARK | B20: 2025-09-24 | C20: 20 | D20: 0 | E20: 1.84 | F20: 0 | G20: 0 | H20: 0
A21: SANDSTONE | B21: 2025-09-24 | C21: 20 | D21: 0 | E21: 8.5 | F21: 0 | G21: 0 | H21: 0
A22: SANDSTONE | B22: 2025-09-23 | C22: 20 | D22: 1.76 | E22: 31.08 | F22: 5.46 | G22: 31.92 | H22: 0
A23: SAWMILL PARK | B23: 2025-09-23 | C23: 20 | D23: 0 | E23: 1.76 | F23: 0 | G23: 0 | H23: 0
A24: GUNSIGHT | B24: 2025-09-23 | C24: 20 | D24: 0 | E24: 3.92 | F24: 0.53 | G24: 4.22 | H24: 0
A25: DRY LAKE | B25: 2025-09-23 | C25: 20 | D25: 0 | E25: 5.4 | F25: 1.23 | G25: 7.19 | H25: 0
A26: SAWMILL PARK | B26: 2025-09-22 | C26: 20 | D26: 0 | E26: 7.14 | F26: 0 | G26: 0 | H26: 0
A27: SANDSTONE | B27: 2025-09-22 | C27: 20 | D27: 0 | E27: 10.08 | F27: 0 | G27: 0 | H27: 0
A28: GUNSIGHT | B28: 2025-09-22 | C28: 20 | D28: 0 | E28: 6.88 | F28: 0 | G28: 0 | H28: 0
A29: DRY LAKE | B29: 2025-09-22 | C29: 20 | D29: 0 | E29: 10.72 | F29: 0 | G29: 0 | H29: 0
A30: DRY LAKE | B30: 2025-09-21 | C30: 20 | D30: 0 | E30: 20.82 | F30: 0 | G30: 0 | H30: 0
A31: SAWMILL PARK | B31: 2025-09-21 | C31: 20 | D31: 0 | E31: 12.83 | F31: 0 | G31: 0 | H31: 0
A32: SANDSTONE | B32: 2025-09-21 | C32: 20 | D32: 0 | E32: 26.26 | F32: 0 | G32: 0 | H32: 0
A33: GUNSIGHT | B33: 2025-09-21 | C33: 20 | D33: 4.55 | E33: 49.71 | F33: 7.24 | G33: 45.11 | H33: 0
A34: SAWMILL PARK | B34: 2025-09-20 | C34: 20 | D34: 3.82 | E34: 54.3 | F34: 4.67 | G34: 38.41 | H34: 0
A35: SANDSTONE | B35: 2025-09-20 | C35: 20 | D35: 9.11 | E35: 68.28 | F35: 7.08 | G35: 51.67 | H35: 0
A36: GUNSIGHT | B36: 2025-09-20 | C36: 20 | D36: 0.44 | E36: 38.37 | F36: 4.09 | G36: 30.79 | H36: 0
A37: DRY LAKE | B37: 2025-09-20 | C37: 20 | D37: 5.98 | E37: 62.33 | F37: 4.96 | G37: 42.07 | H37: 0
A38: SAWMILL PARK | B38: 2025-09-19 | C38: 20 | D38: 12.28 | E38: 62.86 | F38: 4.82 | G38: 41.69 | H38: 0
A39: SANDSTONE | B39: 2025-09-19 | C39: 20 | D39: 17.23 | E39: 75.35 | F39: 7.04 | G39: 53.95 | H39: 0
A40: GUNSIGHT | B40: 2025-09-19 | C40: 20 | D40: 19.15 | E40: 71.09 | F40: 6.29 | G40: 49.85 | H40: 0
A41: DRY LAKE | B41: 2025-09-19 | C41: 20 | D41: 15.57 | E41: 72.3 | F41: 5.11 | G41: 45.67 | H41: 0
A42: DRY LAKE | B42: 2025-09-18 | C42: 20 | D42: 12.25 | E42: 64.52 | F42: 4.81 | G42: 42.16 | H42: 0
A43: SAWMILL PARK | B43: 2025-09-18 | C43: 20 | D43: 9.38 | E43: 56.25 | F43: 4.57 | G43: 38.67 | H43: 0
A44: SANDSTONE | B44: 2025-09-18 | C44: 20 | D44: 13.58 | E44: 69.58 | F44: 5.78 | G44: 47.5 | H44: 0
A45: GUNSIGHT | B45: 2025-09-18 | C45: 20 | D45: 15.74 | E45: 65.74 | F45: 5.13 | G45: 43.8 | H45: 0
A46: SAWMILL PARK | B46: 2025-09-17 | C46: 20 | D46: 0.02 | E46: 28.77 | F46: 1.56 | G46: 17.32 | H46: 0
A47: SANDSTONE | B47: 2025-09-17 | C47: 20 | D47: 3.13 | E47: 52.58 | F47: 6.11 | G47: 42.82 | H47: 0
A48: GUNSIGHT | B48: 2025-09-17 | C48: 20 | D48: 7.23 | E48: 50.19 | F48: 7.78 | G48: 46.84 | H48: 0
A49: DRY LAKE | B49: 2025-09-17 | C49: 20 | D49: 3.68 | E49: 45.52 | F49: 4.63 | G49: 35.27 | H49: 0
A50: SANDSTONE | B50: 2025-09-16 | C50: 20 | D50: 2.4 | E50: 49.67 | F50: 3.72 | G50: 33.21 | H50: 0
A51: GUNSIGHT | B51: 2025-09-16 | C51: 20 | D51: 0 | E51: 8.06 | F51: 0 | G51: 0 | H51: 0
A52: DRY LAKE | B52: 2025-09-16 | C52: 20 | D52: 0 | E52: 14.41 | F52: 0 | G52: 0 | H52: 0
A53: SAWMILL PARK | B53: 2025-09-16 | C53: 20 | D53: 0 | E53: 7.42 | F53: 0 | G53: 0 | H53: 0
A54: SAWMILL PARK | B54: 2025-09-15 | C54: 20 | D54: 13.27 | E54: 61.58 | F54: 4.91 | G54: 41.64 | H54: 0
A55: SANDSTONE | B55: 2025-09-15 | C55: 20 | D55: 20.77 | E55: 70.92 | F55: 10.65 | G55: 63.45 | H55: 0
A56: GUNSIGHT | B56: 2025-09-15 | C56: 20 | D56: 19.11 | E56: 66.51 | F56: 7.21 | G56: 51.48 | H56: 0
A57: DRY LAKE | B57: 2025-09-15 | C57: 20 | D57: 14.85 | E57: 68.06 | F57: 5.03 | G57: 44.1 | H57: 0
A58: DRY LAKE | B58: 2025-09-14 | C58: 20 | D58: 8.83 | E58: 54.4 | F58: 6.12 | G58: 43.52 | H58: 0
A59: GUNSIGHT | B59: 2025-09-14 | C59: 20 | D59: 13.68 | E59: 54.21 | F59: 10.81 | G59: 56.47 | H59: 0
A60: SAWMILL PARK | B60: 2025-09-14 | C60: 20 | D60: 11.21 | E60: 48.48 | F60: 11.62 | G60: 55.45 | H60: 0
A61: SANDSTONE | B61: 2025-09-14 | C61: 20 | D61: 14.05 | E61: 61.13 | F61: 12.06 | G61: 62.75 | H61: 0
A62: SAWMILL PARK | B62: 2025-09-13 | C62: 20 | D62: 0 | E62: 6.08 | F62: 0 | G62: 0 | H62: 0
A63: SANDSTONE | B63: 2025-09-13 | C63: 20 | D63: 0 | E63: 22.09 | F63: 0 | G63: 0 | H63: 0
A64: GUNSIGHT | B64: 2025-09-13 | C64: 20 | D64: 0 | E64: 7.79 | F64: 0 | G64: 0 | H64: 0
A65: DRY LAKE | B65: 2025-09-13 | C65: 20 | D65: 0 | E65: 7.67 | F65: 0 | G65: 0 | H65: 0
A66: GUNSIGHT | B66: 2025-09-12 | C66: 20 | D66: 0 | E66: 19.16 | F66: 0 | G66: 0 | H66: 0
A67: DRY LAKE | B67: 2025-09-12 | C67: 20 | D67: 0 | E67: 13.43 | F67: 0 | G67: 0 | H67: 0
A68: SAWMILL PARK | B68: 2025-09-12 | C68: 20 | D68: 0 | E68: 23.02 | F68: 0 | G68: 0 | H68: 0
A69: SANDSTONE | B69: 2025-09-12 | C69: 20 | D69: 0.51 | E69: 36.57 | F69: 5.3 | G69: 33.94 | H69: 0
A70: SAWMILL PARK | B70: 2025-09-11 | C70: 20 | D70: 6.2 | E70: 64.32 | F70: 5.79 | G70: 45.85 | H70: 0
A71: SANDSTONE | B71: 2025-09-11 | C71: 20 | D71: 1.28 | E71: 52.05 | F71: 8.05 | G71: 48.38 | H71: 0
A72: GUNSIGHT | B72: 2025-09-11 | C72: 20 | D72: 0 | E72: 15.05 | F72: 0 | G72: 0 | H72: 0
A73: DRY LAKE | B73: 2025-09-11 | C73: 20 | D73: 0 | E73: 27.96 | F73: 0 | G73: 0 | H73: 0
A74: SAWMILL PARK | B74: 2025-09-10 | C74: 20 | D74: 21.72 | E74: 75.07 | F74: 6.51 | G74: 51.94 | H74: 0
A75: SANDSTONE | B75: 2025-09-10 | C75: 20 | D75: 39.98 | E75: 91.32 | F75: 15.83 | G75: 85.53 | H75: 0
A76: GUNSIGHT | B76: 2025-09-10 | C76: 20 | D76: 35.76 | E76: 83.56 | F76: 13.74 | G76: 76.95 | H76: 0
A77: DRY LAKE | B77: 2025-09-10 | C77: 20 | D77: 24.14 | E77: 83.07 | F77: 7.69 | G77: 58.77 | H77: 0
